[Event "Titled Tuesday Blitz April 18 Late 2023"]
[White "ATM622"]
[Black "Mihajlovskij"]
[WhiteElo "2512"]
[BlackElo "2180"]
[Result "0-1"]
[Round "03"]
[TimeControl "180+2"]
[Date "2023.04.18"]
[WhiteClock "0:01:00"]
[BlackClock "0:01:52"]

1. d4 {[%clk 0:03:00]}  Nf6 {[%clk 0:02:59]} 2. c4 {[%clk 0:02:59]}  g6 {[%clk 0:02:59]} 3. g3 {[%clk 0:02:59]}  Bg7 {[%clk 0:03:00]} 4. Bg2 {[%clk 0:02:59]}  O-O {[%clk 0:03:01]} 5. Nf3 {[%clk 0:02:59]}  d6 {[%clk 0:03:01]} 6. O-O {[%clk 0:02:59]}  c5 {[%clk 0:03:02]} 7. d5 {[%clk 0:02:57]}  e6 {[%clk 0:03:01]} 8. Nc3 {[%clk 0:02:57]}  exd5 {[%clk 0:03:01]} 9. cxd5 {[%clk 0:02:57]}  Re8 {[%clk 0:03:01]} 10. Nd2 {[%clk 0:02:56]}  a6 {[%clk 0:02:59]} 11. a4 {[%clk 0:02:56]}  Nbd7 {[%clk 0:02:52]} 12. Nc4 {[%clk 0:02:54]}  Ne5 {[%clk 0:02:49]} 13. Nxe5 {[%clk 0:02:54]}  Rxe5 {[%clk 0:02:49]} 14. e4 {[%clk 0:02:54]}  Rb8 {[%clk 0:02:47]} 15. a5 {[%clk 0:02:53]}  b5 {[%clk 0:02:45]} 16. axb6 {[%clk 0:02:53]}  Qxb6 {[%clk 0:02:43]} 17. Na4 {[%clk 0:02:49]}  Qb5 {[%clk 0:02:38]} 18. Bf4 {[%clk 0:02:41]}  Nd7 {[%clk 0:02:33]} 19. Bxe5 {[%clk 0:02:40]}  Nxe5 {[%clk 0:02:34]} 20. Qc2 {[%clk 0:02:35]}  Bd7 {[%clk 0:02:26]} 21. Rfd1 {[%clk 0:02:30]}  a5 {[%clk 0:02:19]} 22. Nc3 {[%clk 0:02:28]}  Qb4 {[%clk 0:02:19]} 23. Bf1 {[%clk 0:02:10]}  Nf3+ {[%clk 0:02:08]} 24. Kh1 {[%clk 0:02:04]}  Nd4 {[%clk 0:02:08]} 25. Qd2 {[%clk 0:01:58]}  Nb3 {[%clk 0:01:58]} 26. Na2 {[%clk 0:01:11]}  Qxd2 {[%clk 0:01:53]} 27. Rxd2 {[%clk 0:01:03]}  Nxd2 {[%clk 0:01:54]} 28. Nc3 {[%clk 0:01:00]}  Nxf1 {[%clk 0:01:52]} 0-1


[Site "https://www.chess.com"]

[Event "Titled Tuesday Blitz April 18 Late 2023"]
[White "Florianovitz, Derlei Alex"]
[Black "Przybylski, Wojciech"]
[WhiteFideId "2114178"]
[BlackFideId "1117599"]
[WhiteElo "1953"]
[BlackElo "2222"]
[Result "1/2-1/2"]
[Round "03"]
[TimeControl "180+2"]
[Date "2023.04.18"]
[WhiteClock "0:00:09"]
[BlackClock "0:00:11"]

1. e4 {[%clk 0:03:00]}  c5 {[%clk 0:02:58]} 2. Nf3 {[%clk 0:03:00]}  e6 {[%clk 0:02:58]} 3. d4 {[%clk 0:03:00]}  cxd4 {[%clk 0:02:58]} 4. Nxd4 {[%clk 0:03:00]}  Nc6 {[%clk 0:02:59]} 5. Nc3 {[%clk 0:03:00]}  Qc7 {[%clk 0:02:59]} 6. a3 {[%clk 0:03:00]}  a6 {[%clk 0:02:58]} 7. Be3 {[%clk 0:03:00]}  Nf6 {[%clk 0:02:58]} 8. Bd3 {[%clk 0:02:59]}  Nxd4 {[%clk 0:02:56]} 9. Bxd4 {[%clk 0:02:59]}  e5 {[%clk 0:02:55]} 10. Be3 {[%clk 0:02:59]}  h6 {[%clk 0:02:52]} 11. h3 {[%clk 0:02:58]}  Bc5 {[%clk 0:02:52]} 12. Qe2 {[%clk 0:02:53]}  O-O {[%clk 0:02:50]} 13. O-O {[%clk 0:02:52]}  d6 {[%clk 0:02:41]} 14. Rad1 {[%clk 0:02:51]}  Be6 {[%clk 0:02:38]} 15. f4 {[%clk 0:02:46]}  exf4 {[%clk 0:02:27]} 16. Rxf4 {[%clk 0:02:45]}  Bxe3+ {[%clk 0:02:28]} 17. Qxe3 {[%clk 0:02:45]}  Qc5 {[%clk 0:02:27]} 18. Qf2 {[%clk 0:02:27]}  Nd7 {[%clk 0:02:25]} 19. Kh2 {[%clk 0:02:23]}  Qxf2 {[%clk 0:02:22]} 20. Rxf2 {[%clk 0:02:23]}  Ne5 {[%clk 0:02:22]} 21. Be2 {[%clk 0:02:19]}  Rfd8 {[%clk 0:02:20]} 22. Nd5 {[%clk 0:02:14]}  Bxd5 {[%clk 0:02:11]} 23. Rxd5 {[%clk 0:02:14]}  Rac8 {[%clk 0:02:10]} 24. c3 {[%clk 0:02:13]}  Kf8 {[%clk 0:02:06]} 25. Bg4 {[%clk 0:02:07]}  Rc5 {[%clk 0:02:00]} 26. Rfd2 {[%clk 0:02:07]}  Rxd5 {[%clk 0:01:57]} 27. Rxd5 {[%clk 0:02:06]}  Ke7 {[%clk 0:01:56]} 28. Be2 {[%clk 0:02:04]}  Rc8 {[%clk 0:01:53]} 29. g4 {[%clk 0:02:02]}  g5 {[%clk 0:01:49]} 30. Kg3 {[%clk 0:02:00]}  Rc5 {[%clk 0:01:37]} 31. Rd4 {[%clk 0:01:56]}  Ng6 {[%clk 0:01:29]} 32. Rb4 {[%clk 0:01:41]}  Rc7 {[%clk 0:01:28]} 33. Bc4 {[%clk 0:01:35]}  Nf4 {[%clk 0:01:11]} 34. Bd5 {[%clk 0:01:34]}  b5 {[%clk 0:01:10]} 35. a4 {[%clk 0:01:28]}  Nd3 {[%clk 0:01:00]} 36. Rd4 {[%clk 0:01:18]}  Nf4 {[%clk 0:00:59]} 37. Rb4 {[%clk 0:01:17]}  Rc5 {[%clk 0:00:50]} 38. axb5 {[%clk 0:01:14]}  axb5 {[%clk 0:00:48]} 39. c4 {[%clk 0:00:49]}  Nxd5 {[%clk 0:00:46]} 40. cxd5 {[%clk 0:00:45]}  Kf6 {[%clk 0:00:45]} 41. Kf3 {[%clk 0:00:43]}  Ke5 {[%clk 0:00:44]} 42. Ke3 {[%clk 0:00:43]}  Rc4 {[%clk 0:00:40]} 43. Rxb5 {[%clk 0:00:40]}  Rxe4+ {[%clk 0:00:40]} 44. Kd3 {[%clk 0:00:38]}  Rd4+ {[%clk 0:00:39]} 45. Ke3 {[%clk 0:00:35]}  Rxd5 {[%clk 0:00:35]} 46. Rb7 {[%clk 0:00:27]}  Ke6 {[%clk 0:00:33]} 47. b4 {[%clk 0:00:24]}  Rd1 {[%clk 0:00:28]} 48. Kf3 {[%clk 0:00:16]}  Rd3+ {[%clk 0:00:26]} 49. Kg2 {[%clk 0:00:15]}  Rb3 {[%clk 0:00:25]} 50. Rb8 {[%clk 0:00:15]}  f5 {[%clk 0:00:23]} 51. gxf5+ {[%clk 0:00:14]}  Kxf5 {[%clk 0:00:23]} 52. b5 {[%clk 0:00:14]}  d5 {[%clk 0:00:21]} 53. b6 {[%clk 0:00:14]}  Ke4 {[%clk 0:00:19]} 54. b7 {[%clk 0:00:13]}  Kd4 {[%clk 0:00:19]} 55. Kf2 {[%clk 0:00:11]}  h5 {[%clk 0:00:19]} 56. Kg2 {[%clk 0:00:10]}  h4 {[%clk 0:00:16]} 57. Kh2 {[%clk 0:00:10]}  Rb2+ {[%clk 0:00:15]} 58. Kg1 {[%clk 0:00:10]}  Rb5 {[%clk 0:00:09]} 59. Kg2 {[%clk 0:00:08]}  Rb3 {[%clk 0:00:09]} 60. Kh2 {[%clk 0:00:08]}  Rb2+ {[%clk 0:00:06]} 61. Kg1 {[%clk 0:00:07]}  Kd3 {[%clk 0:00:06]} 62. Rd8 {[%clk 0:00:06]}  Rxb7 {[%clk 0:00:06]} 63. Rxd5+ {[%clk 0:00:06]}  Ke4 {[%clk 0:00:06]} 64. Rxg5 {[%clk 0:00:06]}  Kf3 {[%clk 0:00:07]} 65. Rf5+ {[%clk 0:00:05]}  Kg3 {[%clk 0:00:07]} 66. Rg5+ {[%clk 0:00:05]}  Kxh3 {[%clk 0:00:07]} 67. Re5 {[%clk 0:00:03]}  Rb2 {[%clk 0:00:06]} 68. Re3+ {[%clk 0:00:03]}  Kg4 {[%clk 0:00:06]} 69. Re1 {[%clk 0:00:03]}  Kf3 {[%clk 0:00:06]} 70. Kh1 {[%clk 0:00:04]}  Kf2 {[%clk 0:00:04]} 71. Ra1 {[%clk 0:00:04]}  Rb3 {[%clk 0:00:04]} 72. Ra2+ {[%clk 0:00:03]}  Kg3 {[%clk 0:00:04]} 73. Ra1 {[%clk 0:00:03]}  h3 {[%clk 0:00:04]} 74. Rg1+ {[%clk 0:00:03]}  Kh4 {[%clk 0:00:05]} 75. Rc1 {[%clk 0:00:02]}  Kg3 {[%clk 0:00:04]} 76. Rg1+ {[%clk 0:00:02]}  Kf2 {[%clk 0:00:04]} 77. Ra1 {[%clk 0:00:02]}  Kf3 {[%clk 0:00:04]} 78. Rc1 {[%clk 0:00:02]}  Kg3 {[%clk 0:00:04]} 79. Rd1 {[%clk 0:00:02]}  Rb2 {[%clk 0:00:04]} 80. Rc1 {[%clk 0:00:02]}  Rd2 {[%clk 0:00:04]} 81. Rb1 {[%clk 0:00:02]}  Kf2 {[%clk 0:00:04]} 82. Rc1 {[%clk 0:00:02]}  Rd3 {[%clk 0:00:04]} 83. Rb1 {[%clk 0:00:03]}  Rf3 {[%clk 0:00:04]} 84. Rc1 {[%clk 0:00:03]}  Kg3 {[%clk 0:00:05]} 85. Rb1 {[%clk 0:00:03]}  h2 {[%clk 0:00:05]} 86. Rc1 {[%clk 0:00:04]}  Kh3 {[%clk 0:00:05]} 87. Rd1 {[%clk 0:00:04]}  Rg3 {[%clk 0:00:06]} 88. Rc1 {[%clk 0:00:04]}  Re3 {[%clk 0:00:06]} 89. Rd1 {[%clk 0:00:05]}  Rc3 {[%clk 0:00:06]} 90. Rb1 {[%clk 0:00:05]}  Rd3 {[%clk 0:00:07]} 91. Rc1 {[%clk 0:00:05]}  Rb3 {[%clk 0:00:07]} 92. Ra1 {[%clk 0:00:06]}  Rc3 {[%clk 0:00:08]} 93. Rb1 {[%clk 0:00:06]}  Re3 {[%clk 0:00:08]} 94. Rc1 {[%clk 0:00:07]}  Ra3 {[%clk 0:00:08]} 95. Rb1 {[%clk 0:00:07]}  Rc3 {[%clk 0:00:08]} 96. Rd1 {[%clk 0:00:07]}  Kg3 {[%clk 0:00:09]} 97. Re1 {[%clk 0:00:07]}  Rf3 {[%clk 0:00:09]} 98. Rd1 {[%clk 0:00:07]}  Re3 {[%clk 0:00:09]} 99. Rc1 {[%clk 0:00:08]}  Rd3 {[%clk 0:00:09]} 100. Rb1 {[%clk 0:00:08]}  Rc3 {[%clk 0:00:10]} 101. Ra1 {[%clk 0:00:08]}  Re3 {[%clk 0:00:10]} 102. Rb1 {[%clk 0:00:08]}  Ra3 {[%clk 0:00:11]} 103. Rc1 {[%clk 0:00:08]}  Rd3 {[%clk 0:00:11]} 104. Rb1 {[%clk 0:00:09]}  Rc3 {[%clk 0:00:11]} 105. Ra1 {[%clk 0:00:09]}  Kh3 {[%clk 0:00:11]} 106. Rb1 {[%clk 0:00:09]} 1/2-1/2


[Site "https://www.chess.com"]

[Event "Titled Tuesday Blitz April 18 Late 2023"]
[White "Karas, Marek"]
[Black "Chemin, Justo Reinaldo"]
[WhiteFideId "14928558"]
[BlackFideId "2101580"]
[WhiteElo "2233"]
[BlackElo "1940"]
[Result "1-0"]
[Round "03"]
[TimeControl "180+2"]
[Date "2023.04.18"]
[WhiteClock "0:02:10"]
[BlackClock "0:01:29"]

1. d4 {[%clk 0:03:00]}  e6 {[%clk 0:03:00]} 2. e4 {[%clk 0:02:59]}  d5 {[%clk 0:03:00]} 3. Bd3 {[%clk 0:02:58]}  c5 {[%clk 0:02:51]} 4. exd5 {[%clk 0:02:57]}  Qxd5 {[%clk 0:02:41]} 5. Nc3 {[%clk 0:02:56]}  Qxd4 {[%clk 0:02:35]} 6. Nf3 {[%clk 0:02:54]}  Qd8 {[%clk 0:02:31]} 7. Bf4 {[%clk 0:02:54]}  a6 {[%clk 0:02:30]} 8. Qe2 {[%clk 0:02:54]}  Nc6 {[%clk 0:02:27]} 9. O-O-O {[%clk 0:02:54]}  Qa5 {[%clk 0:02:17]} 10. Nd5 {[%clk 0:02:45]}  Qxa2 {[%clk 0:01:30]} 11. Nc7+ {[%clk 0:02:31]}  Ke7 {[%clk 0:01:29]} 12. Bd6+ {[%clk 0:02:18]}  Kf6 {[%clk 0:01:29]} 13. Ne8# {[%clk 0:02:10]} 1-0


[Site "https://www.chess.com"]

[Event "Titled Tuesday Blitz April 18 Late 2023"]
[White "Hajiyev, Kanan"]
[Black "Aung Thant Zin"]
[WhiteFideId "13404148"]
[BlackFideId "13000063"]
[WhiteElo "2103"]
[BlackElo "2278"]
[Result "1-0"]
[Round "03"]
[TimeControl "180+2"]
[Date "2023.04.18"]
[WhiteClock "0:02:03"]
[BlackClock "0:00:14"]

1. d4 {[%clk 0:03:00]}  Nf6 {[%clk 0:02:58]} 2. c4 {[%clk 0:03:01]}  e6 {[%clk 0:02:55]} 3. Nc3 {[%clk 0:03:02]}  Bb4 {[%clk 0:02:54]} 4. Qb3 {[%clk 0:02:57]}  c5 {[%clk 0:02:53]} 5. dxc5 {[%clk 0:02:56]}  Bxc5 {[%clk 0:02:52]} 6. Nf3 {[%clk 0:02:56]}  O-O {[%clk 0:02:51]} 7. Bg5 {[%clk 0:02:52]}  Nc6 {[%clk 0:02:30]} 8. e3 {[%clk 0:02:48]}  a6 {[%clk 0:02:22]} 9. Bd3 {[%clk 0:02:46]}  h6 {[%clk 0:02:06]} 10. Bh4 {[%clk 0:02:46]}  Be7 {[%clk 0:02:05]} 11. O-O {[%clk 0:02:45]}  Qc7 {[%clk 0:01:56]} 12. Bg3 {[%clk 0:02:38]}  Qa5 {[%clk 0:01:46]} 13. Rfd1 {[%clk 0:02:31]}  d6 {[%clk 0:01:22]} 14. a3 {[%clk 0:02:27]}  Rd8 {[%clk 0:01:16]} 15. Qc2 {[%clk 0:02:27]}  Bd7 {[%clk 0:01:12]} 16. b4 {[%clk 0:02:27]}  Qb6 {[%clk 0:01:08]} 17. Rac1 {[%clk 0:02:27]}  Rac8 {[%clk 0:01:06]} 18. Qb3 {[%clk 0:02:25]}  Be8 {[%clk 0:01:05]} 19. h3 {[%clk 0:02:20]}  Nd7 {[%clk 0:00:28]} 20. Ne4 {[%clk 0:02:13]}  Nf8 {[%clk 0:00:27]} 21. c5 {[%clk 0:02:12]}  dxc5 {[%clk 0:00:24]} 22. Nxc5 {[%clk 0:02:13]}  Bxc5 {[%clk 0:00:23]} 23. Rxc5 {[%clk 0:02:13]}  Na7 {[%clk 0:00:19]} 24. Rdc1 {[%clk 0:02:05]}  Rxc5 {[%clk 0:00:16]} 25. Rxc5 {[%clk 0:02:06]}  Nb5 {[%clk 0:00:15]} 26. Bxb5 {[%clk 0:02:03]}  axb5 {[%clk 0:00:14]} 27. Bc7 {[%clk 0:02:03]} 1-0


[Site "https://www.chess.com"]

[Event "Titled Tuesday Blitz April 18 Late 2023"]
[White "Vargas, Mauricio"]
[Black "Koutlas, Nikolaos"]
[WhiteFideId "4404572"]
[BlackFideId "25827138"]
[WhiteElo "1998"]
[BlackElo "2215"]
[Result "1-0"]
[Round "03"]
[TimeControl "180+2"]
[Date "2023.04.18"]
[WhiteClock "0:01:07"]
[BlackClock "0:02:22"]

1. e4 {[%clk 0:03:00]}  e6 {[%clk 0:02:58]} 2. f4 {[%clk 0:02:59]}  d5 {[%clk 0:02:59]} 3. e5 {[%clk 0:03:00]}  c5 {[%clk 0:02:59]} 4. Nf3 {[%clk 0:03:00]}  Nc6 {[%clk 0:02:59]} 5. Bb5 {[%clk 0:03:01]}  Bd7 {[%clk 0:02:56]} 6. Bxc6 {[%clk 0:03:02]}  Bxc6 {[%clk 0:02:57]} 7. d3 {[%clk 0:03:02]}  d4 {[%clk 0:02:57]} 8. O-O {[%clk 0:03:01]}  Ne7 {[%clk 0:02:56]} 9. Nbd2 {[%clk 0:03:00]}  Nf5 {[%clk 0:02:56]} 10. Ne4 {[%clk 0:02:59]}  Be7 {[%clk 0:02:56]} 11. Qe1 {[%clk 0:02:47]}  h5 {[%clk 0:02:55]} 12. Bd2 {[%clk 0:02:36]}  Qc7 {[%clk 0:02:51]} 13. g3 {[%clk 0:02:33]}  O-O-O {[%clk 0:02:51]} 14. Rb1 {[%clk 0:02:31]}  f6 {[%clk 0:02:48]} 15. a3 {[%clk 0:02:28]}  h4 {[%clk 0:02:44]} 16. g4 {[%clk 0:02:26]}  Ne3 {[%clk 0:02:43]} 17. Bxe3 {[%clk 0:02:22]}  dxe3 {[%clk 0:02:44]} 18. Qxe3 {[%clk 0:02:21]}  f5 {[%clk 0:02:44]} 19. Neg5 {[%clk 0:02:18]}  fxg4 {[%clk 0:02:43]} 20. Nxe6 {[%clk 0:02:12]}  Qd7 {[%clk 0:02:34]} 21. Nxd8 {[%clk 0:02:10]}  Bxf3 {[%clk 0:02:34]} 22. Nf7 {[%clk 0:02:09]}  Rf8 {[%clk 0:02:33]} 23. e6 {[%clk 0:02:08]}  Qd5 {[%clk 0:02:32]} 24. c4 {[%clk 0:02:07]}  Qc6 {[%clk 0:02:31]} 25. Rbe1 {[%clk 0:02:01]}  Bf6 {[%clk 0:02:30]} 26. e7 {[%clk 0:01:38]}  Rxf7 {[%clk 0:02:25]} 27. e8=Q+ {[%clk 0:01:33]}  Kc7 {[%clk 0:02:22]} 28. Qxf7+ {[%clk 0:01:32]}  Kb6 {[%clk 0:02:22]} 29. Rxf3 {[%clk 0:01:15]}  gxf3 {[%clk 0:02:21]} 30. Qfe6 {[%clk 0:01:09]}  Bd4 {[%clk 0:02:21]} 31. Qxc6+ {[%clk 0:01:09]}  Kxc6 {[%clk 0:02:21]} 32. Qxd4 {[%clk 0:01:08]}  cxd4 {[%clk 0:02:22]} 33. Re4 {[%clk 0:01:07]} 1-0


[Site "https://www.chess.com"]

[Event "Titled Tuesday Blitz April 18 Late 2023"]
[White "Szpar, Milosz"]
[Black "tandercat"]
[WhiteFideId "1184989"]
[WhiteElo "2436"]
[BlackElo "1960"]
[Result "1-0"]
[Round "03"]
[TimeControl "180+2"]
[Date "2023.04.18"]
[WhiteClock "0:01:00"]
[BlackClock "0:00:06"]

1. e4 {[%clk 0:03:00]}  c5 {[%clk 0:02:59]} 2. Nf3 {[%clk 0:02:59]}  Nc6 {[%clk 0:02:59]} 3. d4 {[%clk 0:02:59]}  cxd4 {[%clk 0:02:59]} 4. Nxd4 {[%clk 0:02:59]}  e5 {[%clk 0:02:59]} 5. Nb5 {[%clk 0:02:56]}  d6 {[%clk 0:02:59]} 6. c4 {[%clk 0:02:54]}  Be7 {[%clk 0:02:58]} 7. N1c3 {[%clk 0:02:53]}  a6 {[%clk 0:02:58]} 8. Na3 {[%clk 0:02:51]}  f5 {[%clk 0:02:57]} 9. exf5 {[%clk 0:02:47]}  Bxf5 {[%clk 0:02:58]} 10. Bd3 {[%clk 0:02:46]}  Be6 {[%clk 0:02:57]} 11. O-O {[%clk 0:02:44]}  Nf6 {[%clk 0:02:57]} 12. Nc2 {[%clk 0:02:39]}  O-O {[%clk 0:02:57]} 13. b3 {[%clk 0:02:32]}  Kh8 {[%clk 0:02:56]} 14. Bg5 {[%clk 0:02:25]}  Ng4 {[%clk 0:02:48]} 15. Bxe7 {[%clk 0:02:22]}  Qxe7 {[%clk 0:02:46]} 16. h3 {[%clk 0:02:14]}  Nf6 {[%clk 0:02:33]} 17. Qd2 {[%clk 0:02:11]}  Nh5 {[%clk 0:02:22]} 18. Be4 {[%clk 0:01:58]}  Rad8 {[%clk 0:02:13]} 19. Nd5 {[%clk 0:01:56]}  Bxd5 {[%clk 0:01:59]} 20. cxd5 {[%clk 0:01:56]}  Nb8 {[%clk 0:01:51]} 21. Rae1 {[%clk 0:01:18]}  Nd7 {[%clk 0:01:50]} 22. g3 {[%clk 0:01:13]}  Nc5 {[%clk 0:01:32]} 23. Bg2 {[%clk 0:01:12]}  Qf6 {[%clk 0:01:16]} 24. b4 {[%clk 0:01:10]}  Nd7 {[%clk 0:01:08]} 25. Ne3 {[%clk 0:01:10]}  Qg5 {[%clk 0:00:55]} 26. h4 {[%clk 0:01:06]}  Qg6 {[%clk 0:00:52]} 27. Qd1 {[%clk 0:01:05]}  Nhf6 {[%clk 0:00:48]} 28. Qb1 {[%clk 0:01:02]}  Qxb1 {[%clk 0:00:38]} 29. Rxb1 {[%clk 0:01:02]}  Rc8 {[%clk 0:00:35]} 30. Rbc1 {[%clk 0:01:01]}  Kg8 {[%clk 0:00:33]} 31. Bh3 {[%clk 0:01:01]}  Kf7 {[%clk 0:00:27]} 32. Be6+ {[%clk 0:01:00]}  Kg6 {[%clk 0:00:21]} 33. Nf5 {[%clk 0:01:00]}  Rxc1 {[%clk 0:00:08]} 34. Rxc1 {[%clk 0:01:00]}  Ne4 {[%clk 0:00:06]} 1-0


[Site "https://www.chess.com"]

[Event "Titled Tuesday Blitz April 18 Late 2023"]
[White "brm72"]
[Black "Kraus, Tomas"]
[BlackFideId "331708"]
[WhiteElo "2595"]
[BlackElo "2389"]
[Result "1/2-1/2"]
[Round "03"]
[TimeControl "180+2"]
[Date "2023.04.18"]
[WhiteClock "0:00:27"]
[BlackClock "0:00:07"]

1. d4 {[%clk 0:03:00]}  Nf6 {[%clk 0:02:59]} 2. c4 {[%clk 0:03:01]}  e6 {[%clk 0:02:58]} 3. g3 {[%clk 0:03:00]}  Bb4+ {[%clk 0:02:51]} 4. Bd2 {[%clk 0:02:59]}  Qe7 {[%clk 0:02:51]} 5. Nf3 {[%clk 0:02:58]}  Nc6 {[%clk 0:02:49]} 6. Bg2 {[%clk 0:02:58]}  Bxd2+ {[%clk 0:02:46]} 7. Qxd2 {[%clk 0:02:57]}  Ne4 {[%clk 0:02:46]} 8. Qc2 {[%clk 0:02:45]}  Qb4+ {[%clk 0:02:45]} 9. Kf1 {[%clk 0:02:21]}  d5 {[%clk 0:02:44]} 10. cxd5 {[%clk 0:02:17]}  exd5 {[%clk 0:02:45]} 11. e3 {[%clk 0:02:15]}  Bf5 {[%clk 0:02:41]} 12. Qc1 {[%clk 0:02:13]}  Qb5+ {[%clk 0:02:25]} 13. Kg1 {[%clk 0:02:12]}  Qe2 {[%clk 0:02:18]} 14. Qe1 {[%clk 0:02:00]}  Qxb2 {[%clk 0:02:17]} 15. Nbd2 {[%clk 0:02:00]}  Nc3 {[%clk 0:02:01]} 16. h3 {[%clk 0:01:48]}  O-O {[%clk 0:01:56]} 17. Kh2 {[%clk 0:01:48]}  Rfe8 {[%clk 0:01:57]} 18. Nh4 {[%clk 0:01:47]}  Bd3 {[%clk 0:01:51]} 19. Nhf3 {[%clk 0:01:43]}  Re7 {[%clk 0:01:28]} 20. Nb3 {[%clk 0:01:42]}  Ne4 {[%clk 0:01:10]} 21. Kg1 {[%clk 0:01:41]}  Rae8 {[%clk 0:01:05]} 22. Nfd2 {[%clk 0:01:32]}  a5 {[%clk 0:00:54]} 23. Nxe4 {[%clk 0:01:30]}  Bxe4 {[%clk 0:00:52]} 24. Bxe4 {[%clk 0:01:29]}  Rxe4 {[%clk 0:00:51]} 25. Nc5 {[%clk 0:01:28]}  R4e7 {[%clk 0:00:45]} 26. Qb1 {[%clk 0:01:15]}  Qxb1+ {[%clk 0:00:37]} 27. Rxb1 {[%clk 0:01:16]}  b6 {[%clk 0:00:37]} 28. Nd3 {[%clk 0:01:15]}  Nd8 {[%clk 0:00:31]} 29. Kg2 {[%clk 0:01:14]}  f6 {[%clk 0:00:29]} 30. Rhc1 {[%clk 0:01:14]}  Kf7 {[%clk 0:00:23]} 31. Nf4 {[%clk 0:01:14]}  Rd7 {[%clk 0:00:21]} 32. Nxd5 {[%clk 0:01:14]}  Rxd5 {[%clk 0:00:20]} 33. Rxc7+ {[%clk 0:01:13]}  Re7 {[%clk 0:00:17]} 34. Rxe7+ {[%clk 0:01:11]}  Kxe7 {[%clk 0:00:17]} 35. Rxb6 {[%clk 0:01:12]}  Ne6 {[%clk 0:00:10]} 36. h4 {[%clk 0:01:04]}  Nc7 {[%clk 0:00:09]} 37. Kf3 {[%clk 0:00:57]}  Rb5 {[%clk 0:00:09]} 38. Rc6 {[%clk 0:00:57]}  Kd7 {[%clk 0:00:08]} 39. Rc3 {[%clk 0:00:55]}  Nd5 {[%clk 0:00:08]} 40. Ra3 {[%clk 0:00:54]}  Kc7 {[%clk 0:00:06]} 41. Ke4 {[%clk 0:00:52]}  Kb6 {[%clk 0:00:06]} 42. Kd3 {[%clk 0:00:52]}  Nb4+ {[%clk 0:00:06]} 43. Kc4 {[%clk 0:00:52]}  Nc2 {[%clk 0:00:06]} 44. Rc3 {[%clk 0:00:49]}  Rb2 {[%clk 0:00:05]} 45. a3 {[%clk 0:00:43]}  Ne1 {[%clk 0:00:05]} 46. f4 {[%clk 0:00:41]}  Ng2 {[%clk 0:00:04]} 47. e4 {[%clk 0:00:40]}  Re2 {[%clk 0:00:03]} 48. Kd5 {[%clk 0:00:40]}  Ne3+ {[%clk 0:00:03]} 49. Kd6 {[%clk 0:00:34]}  Nc2 {[%clk 0:00:03]} 50. Kd5 {[%clk 0:00:32]}  Kb5 {[%clk 0:00:03]} 51. e5 {[%clk 0:00:29]}  fxe5 {[%clk 0:00:03]} 52. dxe5 {[%clk 0:00:30]}  Ne3+ {[%clk 0:00:03]} 53. Ke6 {[%clk 0:00:28]}  Nc4 {[%clk 0:00:03]} 54. g4 {[%clk 0:00:23]}  Re3 {[%clk 0:00:02]} 55. Rxe3 {[%clk 0:00:19]}  Nxe3 {[%clk 0:00:03]} 56. f5 {[%clk 0:00:19]}  Nxg4 {[%clk 0:00:03]} 57. f6 {[%clk 0:00:20]}  gxf6 {[%clk 0:00:03]} 58. exf6 {[%clk 0:00:21]}  Nxf6 {[%clk 0:00:03]} 59. Kxf6 {[%clk 0:00:21]}  Ka4 {[%clk 0:00:04]} 60. Kg7 {[%clk 0:00:22]}  Kxa3 {[%clk 0:00:05]} 61. Kxh7 {[%clk 0:00:23]}  Kb4 {[%clk 0:00:05]} 62. h5 {[%clk 0:00:24]}  a4 {[%clk 0:00:05]} 63. h6 {[%clk 0:00:25]}  a3 {[%clk 0:00:06]} 64. Kg8 {[%clk 0:00:25]}  a2 {[%clk 0:00:07]} 65. h7 {[%clk 0:00:26]}  a1=Q {[%clk 0:00:07]} 66. h8=Q {[%clk 0:00:26]}  Qxh8+ {[%clk 0:00:07]} 67. Kxh8 {[%clk 0:00:27]} 1/2-1/2


[Site "https://www.chess.com"]